bitfinex-derivatives/quotes_SOLF0:USTF0_20260217
["timestamp","ask_amount","ask_price","bid_price","bid_amount"]
[1771296738695,17.32869973,87.513,87.49,2.6622781]
[1771296739388,10.2863,87.543,87.5,2.6622781]
[1771296739792,5.00183875,87.542,87.5,2.6622781]
[1771296739993,10.285,87.554,87.5,2.6622781]
[1771296740292,5.00183875,87.565,87.54,2.6622781]
[1771296740495,5.00183875,87.565,87.53,2.6622781]
[1771296740696,15.28553875,87.565,87.52,2.6622781]
[1771296740900,5.00183875,87.564,87.52,2.6622781]
[1771296741394,5.00183875,87.564,87.53,2.6622781]
[1771296741594,5.00183875,87.564,87.52,2.6622781]
[1771296741794,5.00183875,87.564,87.456,27.80703516]
[1771296741795,5.00183875,87.564,87.51,2.6622781]
[1771296742000,5.00183875,87.564,87.51,2.65856135]
[1771296742797,4.98867114,87.553,87.49,2.65856135]
[1771296743702,15.21629734,87.541,87.49,2.65856135]
[1771296743899,15.21629734,87.541,87.5,2.65856135]
[1771296744100,4.92969734,87.541,87.51,2.65856135]
[1771296744595,4.92969734,87.541,87.5,2.65856135]
[1771296744900,4.92969734,87.541,87.456,20.76487144]
[1771296744901,4.92969734,87.538,87.48,2.65856135]
[1771296745799,4.93982612,87.526,87.48,2.65856135]
[1771296746705,4.93982612,87.526,87.482,10.2934]
[1771296747505,4.93982612,87.526,87.48,2.65856135]
[1771296751914,4.96833273,87.524,87.473,10.2944]
[1771296752109,2.65856135,87.52,87.46,2.65856135]
[1771296752317,4.96833273,87.509,87.46,2.65856135]
[1771296752611,4.96833273,87.506,87.443,10.2697513]
[1771296752814,4.96833273,87.489,87.43,2.65856135]
[1771296753219,15.2876136,87.473,87.43,2.65856135]
[1771296753715,4.9930136,87.473,87.431,10.2993]
[1771296754016,2.65856135,87.54,87.461,2.89728092]
[1771296754224,2.65856135,87.54,87.48,2.65856135]
[1771296754922,10.2894,87.517,87.47,2.65856135]
[1771296755119,72.02,87.552,87.471,2.39816053]
[1771296755424,2.65856135,87.54,87.471,2.39816053]
[1771296755626,10.2891,87.52,87.471,2.39816053]
[1771296757420,14.02665043,87.52,87.471,2.39816053]
[1771296758622,3.73755043,87.519,87.471,2.39816053]
[1771296760425,3.73755043,87.519,87.471,12.69276053]
[1771296761320,10.29,87.512,87.471,2.39816053]
[1771296762525,3.73755043,87.507,87.46,2.65856135]
[1771296764919,3.73755043,87.507,87.461,2.4265473]
[1771296766728,3.73755043,87.507,87.463,12.72343468]
[1771296767426,3.73755043,87.507,87.45,2.65856135]
[1771296767630,3.62469738,87.489,87.434,2.24640302]
[1771296768727,3.62469738,87.489,87.442,2.24640302]
[1771296768728,10.2929,87.487,87.442,2.24640302]
[1771296770533,3.62469738,87.489,87.444,10.2979]
[1771296770834,3.62469738,87.489,87.45,2.65856135]
[1771296771028,3.85102863,87.504,87.46,2.65856135]
[1771296771234,3.85102863,87.519,87.461,2.20374689]
[1771296771532,3.85102863,87.519,87.471,2.20374689]
[1771296772130,10.2892,87.518,87.471,2.20374689]
[1771296772729,3.85102863,87.514,87.462,10.2957]
[1771296773232,3.85102863,87.514,87.471,2.17959307]
[1771296773435,10.2886,87.523,87.471,2.17959307]
[1771296773637,10.2886,87.523,87.481,2.17959307]
[1771296775832,10.2891,87.52,87.472,10.2946]
[1771296776139,3.85102863,87.519,87.472,10.2946]
[1771296779041,10.2893,87.518,87.47,2.65856135]
[1771296779239,10.2893,87.518,87.47,5.49225828]
[1771296779539,10.2893,87.518,87.471,2.83369693]
[1771296780440,14.14032863,87.518,87.471,2.83369693]
[1771296780836,14.14032863,87.518,87.471,13.12839693]
[1771296781142,3.85102863,87.517,87.472,2.85044322]
[1771296781441,10.2883,87.526,87.476,2.85044322]
[1771296781842,10.2887,87.523,87.476,2.85044322]
[1771296782933,3.85102863,87.519,87.467,10.2952]
[1771296783133,3.85102863,87.519,87.461,2.85044322]
[1771296783134,3.85102863,87.509,87.461,2.85044322]
[1771296784639,3.85102863,87.508,87.461,2.85044322]
[1771296785542,3.85102863,87.499,87.448,2.96149352]
[1771296786743,2.65856135,87.5,87.448,2.96149352]
[1771296786744,3.85102863,87.496,87.448,2.96149352]
[1771296787547,3.85102863,87.496,87.448,13.36614638]
[1771296787857,3.85102863,87.494,87.448,2.96149352]
[1771296788150,3.85102863,87.489,87.444,10.40465286]
[1771296788352,3.85102863,87.489,87.438,10.2986]
[1771296788547,3.85102863,87.489,87.441,10.2982]
[1771296788753,10.2922,87.493,87.45,2.65856135]
[1771296788955,10.2922,87.493,87.451,2.96602942]
[1771296792757,3.85102863,87.499,87.451,13.26312942]
[1771296793455,3.85102863,87.499,87.452,2.97408913]
[1771296795160,3.67497744,87.496,87.452,2.97408913]
[1771296798361,3.67497744,87.489,87.439,13.26646926]
[1771296799354,3.67497744,87.487,87.442,10.2981]
[1771296799554,3.67497744,87.487,87.443,2.9748289]
[1771296800662,3.67497744,87.487,87.445,2.9748289]
[1771296808366,3.67497744,87.487,87.447,2.89794353]
[1771296809972,3.67497744,87.487,87.438,10.2985]
[1771296810777,2.66248377,87.49,87.438,10.2985]
[1771296810778,3.67497744,87.484,87.438,10.2985]
[1771296811480,3.67497744,87.484,87.442,10.298]
[1771296813982,3.67497744,87.476,87.433,10.4184398]
[1771296814382,3.67497744,87.476,87.434,2.90688685]
[1771296815678,3.67497744,87.476,87.435,2.88906765]
[1771296816184,3.67497744,87.489,87.443,2.88906765]
[1771296817480,10.2928,87.488,87.445,2.87079042]
[1771296817687,13.96777744,87.488,87.445,2.87079042]
[1771296819682,3.67497744,87.487,87.445,2.87079042]
[1771296820390,3.67497744,87.485,87.445,2.87079042]
[1771296821585,3.67497744,87.485,87.444,10.2978]
[1771296821977,3.67497744,87.477,87.432,2.89939793]
[1771296822185,3.67497744,87.477,87.431,20.7178398]
[1771296822381,3.67497744,87.469,87.426,10.4184398]
[1771296822580,3.67497744,87.469,87.424,10.3002]
[1771296828087,3.67732787,87.464,87.42,2.89939793]
[1771296828690,3.67732787,87.464,87.422,13.10523503]
[1771296829491,3.67732787,87.464,87.422,2.80483503]
[1771296834898,3.70866988,87.449,87.408,2.77446227]
[1771296837304,3.70866988,87.449,87.408,74.83446227]
[1771296837500,3.70866988,87.449,87.41,2.80300278]
[1771296838300,10.2965,87.456,87.412,2.80300278]
[1771296839703,10.2965,87.456,87.414,2.81024727]
[1771296840398,3.70866988,87.462,87.419,2.81024727]
[1771296840704,11.44,87.534,87.441,2.81024727]
[1771296840705,3.70866988,87.489,87.441,2.81024727]
[1771296841900,10.2929,87.487,87.441,2.81024727]
[1771296842502,3.70866988,87.484,87.441,2.81024727]
[1771296842703,3.70866988,87.484,87.438,72.06]
[1771296842704,3.70866988,87.469,87.424,10.4184398]
[1771296842908,2.66248377,87.47,87.403,2.77301053]
[1771296842909,3.70866988,87.459,87.406,82.4784398]
[1771296843109,3.70866988,87.459,87.407,2.83593678]
[1771296844804,3.70866988,87.459,87.409,10.302]
[1771296845410,3.70866988,87.459,87.409,13.13943444]
[1771296847312,3.70866988,87.459,87.41,3.06076495]
[1771296848315,3.70866988,87.456,87.41,3.06076495]
[1771296849213,3.70866988,87.449,87.41,3.06076495]
[1771296857718,3.74517469,87.447,87.41,3.06076495]
[1771296861322,3.74517469,87.447,87.399,72.06]
[1771296861522,3.74517469,87.447,87.399,75.1835091]
[1771296863330,3.74517469,87.447,87.399,3.1235091]
[1771296863525,3.74517469,87.447,87.4,10.303]
[1771296864929,3.74517469,87.447,87.4,13.45580807]
[1771296866331,3.74517469,87.447,87.401,3.15229237]
[1771296866932,3.74517469,87.447,87.404,3.15229237]
[1771296868832,3.74517469,87.447,87.407,13.458767]
[1771296869229,3.74517469,87.447,87.408,3.06824518]
[1771296872632,3.74517469,87.447,87.411,10.3018]
[1771296874026,3.74517469,87.447,87.383,13.90351758]
[1771296874232,2.40002598,87.433,87.383,3.77479451]
[1771296874436,2.40002598,87.445,87.401,3.77479451]
[1771296874634,2.40002598,87.459,87.401,3.77479451]
[1771296875732,2.66534051,87.46,87.4,2.66534051]
[1771296875733,2.28840014,87.454,87.403,3.77479451]
[1771296875935,2.28840014,87.449,87.403,3.77479451]
[1771296883443,2.31862187,87.446,87.403,3.77479451]
[1771296888548,2.27207656,87.439,87.403,3.77479451]
[1771296890443,2.28874297,87.439,87.403,3.77479451]
[1771296890644,4.95408348,87.46,87.403,3.77479451]
[1771296890845,2.28874297,87.459,87.403,3.77479451]
[1771296891650,10.2973,87.45,87.405,3.5695183]
[1771296893653,2.33110314,87.484,87.431,3.5695183]
[1771296893842,21.32864988,87.523,87.431,3.5695183]
[1771296893843,2.33110314,87.479,87.431,3.5695183]
[1771296894756,2.33110314,87.474,87.431,3.5695183]
[1771296898861,5.05343884,87.46,87.419,3.5695183]
[1771296899455,2.38809833,87.46,87.419,3.5695183]
[1771296899656,10.2963,87.458,87.419,3.5695183]
[1771296899856,2.38860716,87.457,87.419,3.5695183]
[1771296900259,2.38860716,87.457,87.389,72.06]
[1771296900260,2.38860716,87.48,87.421,3.5695183]
[1771296900459,2.38860716,87.48,87.431,3.5695183]
[1771296901761,2.38860716,87.48,87.434,3.5695183]
[1771296902864,2.38860716,87.48,87.438,3.5695183]
[1771296908164,10.2917,87.497,87.44,6.23485881]
[1771296908365,10.2917,87.497,87.441,3.5695183]
[1771296909261,10.2917,87.497,87.451,3.5695183]
[1771296911958,12.61193801,87.497,87.451,3.5695183]
[1771296912562,10.2924,87.491,87.451,3.5695183]
[1771296913269,2.32023801,87.496,87.451,3.5695183]
[1771296913662,2.32023801,87.496,87.45,2.66534051]
[1771296913663,2.32023801,87.496,87.453,3.5695183]
[1771296913862,2.32876048,87.509,87.46,2.66534051]
[1771296914066,2.32876048,87.509,87.461,3.5695183]
[1771296914470,2.32375935,87.502,87.461,3.5695183]
[1771296915070,2.66534051,87.51,87.461,3.5695183]
[1771296915071,12.57784711,87.5,87.461,3.5695183]
[1771296915279,2.28644711,87.499,87.461,3.5695183]
[1771296915774,15.24208762,87.51,87.461,3.5695183]
[1771296915974,2.28644711,87.509,87.461,3.5695183]
[1771296916676,2.28644711,87.509,87.462,10.2958]
[1771296916975,2.28644711,87.509,87.463,3.8233701]
[1771296917669,2.28644711,87.509,87.465,3.8233701]
[1771296918973,10.2905,87.507,87.465,3.8233701]
[1771296920374,2.30673612,87.516,87.467,3.8233701]
[1771296921676,10.2898,87.514,87.467,3.8233701]
[1771296921878,2.30052909,87.513,87.467,3.8233701]
[1771296924072,2.30645439,87.509,87.467,3.8233701]
[1771296926872,2.30645439,87.509,87.45,2.66112659]
[1771296926873,2.30645439,87.509,87.475,3.8233701]
[1771296928881,4.95084363,87.52,87.475,3.8233701]
[1771296929181,2.28971704,87.519,87.475,3.8233701]
[1771296929884,4.94958565,87.51,87.475,3.8233701]
[1771296930490,2.28845906,87.509,87.464,3.8233701]
[1771296930776,2.28845906,87.499,87.451,3.8233701]
[1771296930976,2.28845906,87.489,87.451,3.8233701]
[1771296931178,2.28845906,87.489,87.43,2.66112659]
[1771296931179,2.30973892,87.488,87.44,14.1217701]
[1771296931384,2.30973892,87.488,87.441,3.8233701]
[1771296932182,2.30973892,87.488,87.445,3.8233701]
[1771296932383,2.66112659,87.49,87.445,3.8233701]
[1771296932685,10.2913,87.501,87.451,3.8233701]
[1771296933482,10.2916,87.498,87.455,10.2966]
[1771296933683,2.29153522,87.497,87.456,3.8233701]
[1771296934079,2.66112659,87.49,87.456,3.8233701]
[1771296934485,4.95266181,87.49,87.456,3.8233701]
[1771296942991,2.29153522,87.49,87.456,3.8233701]
[1771296943790,2.66112659,87.5,87.456,3.8233701]
[1771296944482,2.29548259,87.499,87.456,3.8233701]
[1771296946185,2.66112659,87.51,87.462,3.55140347]
[1771296946493,2.3124839,87.512,87.462,3.55140347]
[1771296946986,2.3124839,87.512,87.469,3.55140347]
[1771296947188,2.66112659,87.52,87.469,3.55140347]
[1771296947392,4.96990788,87.52,87.469,3.55140347]
[1771296948093,2.30878129,87.519,87.469,3.55140347]
[1771296949089,2.32037662,87.517,87.469,3.55140347]
[1771296949396,2.32037662,87.517,87.471,3.58292499]
[1771296952797,2.17306288,87.529,87.48,3.58292499]
[1771296953997,2.1590658,87.519,87.48,3.58292499]
[1771296956198,2.14465241,87.517,87.48,3.58292499]
[1771296958394,12.43491519,87.516,87.48,3.58292499]
[1771296958600,2.66112659,87.53,87.48,3.58292499]
[1771296958601,2.14541519,87.515,87.48,3.58292499]
[1771296959903,10.2898,87.513,87.48,3.58292499]
[1771296960798,10.2889,87.521,87.48,3.58292499]
[1771296960997,2.24640937,87.524,87.48,3.58292499]
[1771296961195,2.25477442,87.509,87.459,3.58292499]
[1771296961897,2.25477442,87.505,87.459,3.58292499]
[1771296963404,2.25477442,87.505,87.461,3.58292499]
[1771296963606,10.2898,87.514,87.461,3.58292499]
[1771296964704,10.2898,87.514,87.463,3.58292499]
[1771296965803,10.2898,87.514,87.466,3.58292499]
[1771296966309,2.26740962,87.506,87.466,3.58292499]
[1771296966508,2.26740962,87.506,87.451,3.58292499]
[1771296967500,2.26740962,87.506,87.441,239.66531492]
[1771296967501,2.22853597,87.529,87.461,3.58292499]
[1771296968411,2.22853597,87.51,87.461,3.58292499]
[1771296968703,2.22853597,87.509,87.461,3.58292499]
[1771296969312,2.22853597,87.509,87.462,10.2957]
[1771296970911,2.28770947,87.504,87.461,3.58292499]
[1771296976317,2.26597063,87.5,87.461,3.58292499]
[1771296978318,10.2916,87.498,87.461,3.58292499]
[1771296979521,12.55538059,87.498,87.461,3.58292499]
[1771296981123,2.26205948,87.497,87.461,3.58292499]
[1771296983924,10.2919,87.495,87.461,3.58292499]
[1771296984116,12.55409223,87.495,87.461,3.58292499]
[1771296987525,10.2907,87.506,87.461,3.58292499]
[1771296988613,2.23324543,87.543,87.481,3.74670787]
[1771296989824,10.2875,87.533,87.491,3.74670787]
[1771296992323,10.2864,87.542,87.5,2.66154374]
[1771296992524,10.2864,87.542,87.501,3.74670787]
[1771296993824,72.02,87.565,87.501,3.74670787]
[1771296993825,10.69046028,87.569,87.501,3.74670787]
[1771296994031,3.71808926,87.568,87.53,2.66154374]
[1771296994528,3.71808926,87.568,87.524,3.23671389]
[1771296995328,2.66154374,87.59,87.507,72.02]
[1771296995329,3.71808926,87.589,87.531,3.24752598]
[1771296996736,3.71808926,87.589,87.532,3.24752598]
[1771296997733,3.71808926,87.589,87.54,2.66154374]
[1771296998033,10.69046028,87.632,87.507,72.02]
[1771296998034,3.71808926,87.602,87.551,3.22957724]
[1771296998232,3.71808926,87.602,87.56,2.66154374]
[1771296998432,3.71808926,87.602,87.553,3.22957724]
[1771297003129,3.71808926,87.602,87.561,3.12531918]
[1771297003334,3.71808926,87.619,87.561,3.12531918]
[1771297003728,3.71808926,87.619,87.5,13.90351758]
[1771297003729,3.71808926,87.652,87.589,3.12531918]
[1771297003932,3.71808926,87.639,87.58,2.66154374]
[1771297004331,3.71808926,87.639,87.592,3.12042726]
[1771297005034,2.66154374,87.66,87.601,3.12042726]
[1771297005231,3.83418463,87.659,87.601,3.12042726]
[1771297005735,3.83418463,87.655,87.601,3.12042726]
[1771297006440,3.83418463,87.646,87.601,3.12042726]
[1771297006734,3.83418463,87.629,87.58,2.66154374]
[1771297007038,3.83418463,87.623,87.573,3.09643238]
[1771297007234,3.83418463,87.623,87.549,71.96]
[1771297007235,3.83418463,87.637,87.581,3.17626315]
[1771297007431,3.83418463,87.637,87.549,71.96]
[1771297007432,3.83418463,87.637,87.591,3.17626315]
[1771297009532,2.66154374,87.64,87.591,3.17626315]
[1771297009533,13.86711724,87.632,87.591,3.17626315]
[1771297009741,3.59131724,87.629,87.578,3.18161913]
[1771297010833,3.59131724,87.628,87.578,3.18161913]
[1771297011839,3.59131724,87.622,87.578,3.18161913]
[1771297013635,3.59131724,87.618,87.578,3.18161913]
[1771297014238,71.96,87.65,87.564,3.18201127]
[1771297014239,3.59131724,87.615,87.564,3.18201127]
[1771297014540,3.59131724,87.609,87.564,3.18201127]
[1771297015341,10.2788,87.607,87.564,3.18201127]
[1771297016738,10.2797,87.599,87.564,3.18201127]
[1771297017246,10.2797,87.599,87.551,3.11574503]
[1771297017247,13.87101724,87.599,87.551,3.11574503]
[1771297017639,3.59131724,87.592,87.551,3.11574503]
[1771297018345,10.2807,87.591,87.551,3.11574503]
[1771297020848,296.0,87.649,87.495,34.32]
[1771297020849,13.87271724,87.585,87.538,3.14121445]
[1771297021147,3.59131724,87.584,87.541,3.14308293]
[1771297021349,2.66154374,87.6,87.541,3.14308293]
[1771297021350,3.59131724,87.599,87.541,3.14308293]
[1771297021547,3.59131724,87.594,87.541,3.14308293]
[1771297022147,10.2728,87.658,87.599,10.2796]
[1771297022345,3.59131724,87.679,87.63,2.66154374]
[1771297022552,3.59131724,87.699,87.641,3.14308293]
[1771297022753,3.59131724,87.679,87.626,3.14308293]
[1771297022944,3.59131724,87.679,87.631,3.14308293]
[1771297023744,3.59131724,87.679,87.605,2.91328615]
[1771297023938,3.59131724,87.669,87.611,2.91328615]
[1771297024150,2.66154374,87.66,87.611,2.91328615]
[1771297024346,1.49286098,87.668,87.611,2.91328615]
[1771297025045,10.272,87.666,87.611,13.19148615]
[1771297025247,10.272,87.666,87.611,2.91328615]
[1771297025952,10.272,87.666,87.62,2.66154374]
[1771297026344,3.59131724,87.665,87.62,2.66154374]
[1771297026650,3.59131724,87.665,87.611,2.91328615]
[1771297028150,3.59131724,87.659,87.587,3.64493801]
[1771297028349,159.6927,87.717,87.571,3.64493801]
[1771297028350,3.59131724,87.629,87.571,3.64493801]
[1771297028550,3.59131724,87.629,87.581,3.64493801]
[1771297028751,12.93644374,87.64,87.587,10.281]
[1771297029052,3.59131724,87.639,87.587,10.281]
[1771297029253,3.59131724,87.639,87.587,13.92593801]
[1771297029453,3.59131724,87.639,87.588,3.64493801]
[1771297033352,10.2754,87.636,87.588,3.64493801]
[1771297033558,3.59131724,87.635,87.58,2.66154374]
[1771297033761,3.59131724,87.635,87.581,3.64493801]
[1771297034653,10.2758,87.633,87.581,3.64493801]
[1771297035558,3.59131724,87.635,87.587,3.89958657]
[1771297036057,3.59131724,87.635,87.591,3.89958657]
[1771297036656,3.56029864,87.633,87.574,3.89958657]
[1771297036959,3.56029864,87.679,87.621,3.89958657]
[1771297037361,3.56029864,87.669,87.621,3.89958657]
[1771297037758,3.56029864,87.659,87.606,3.89958657]
[1771297037960,3.56029864,87.649,87.6,10.2795]
[1771297038361,3.56029864,87.639,87.591,3.89958657]
[1771297039759,3.56029864,87.638,87.591,3.89958657]
[1771297040160,2.66154374,87.63,87.582,10.2816]
[1771297040363,6.22184238,87.63,87.582,10.2816]
[1771297040957,3.56029864,87.629,87.582,10.2816]
[1771297043166,3.56029864,87.628,87.576,3.89958657]
[1771297044370,3.56029864,87.625,87.576,3.89958657]
[1771297046366,3.56029864,87.625,87.577,10.2822]
[1771297046566,3.56029864,87.625,87.577,14.18178657]
[1771297046760,3.56029864,87.625,87.578,3.89958657]
[1771297047167,3.56029864,87.623,87.578,3.89958657]
[1771297050267,3.56029864,87.636,87.584,3.89958657]
[1771297051669,3.56029864,87.636,87.586,10.2811]
[1771297052071,3.56029864,87.636,87.586,14.18068657]
[1771297052269,3.56029864,87.636,87.587,3.89958657]
[1771297054070,3.56029864,87.625,87.574,14.18218657]
[1771297054272,3.56029864,87.619,87.574,14.18218657]
[1771297054670,3.56029864,87.609,87.561,3.89958657]
[1771297055772,3.56029864,87.609,87.564,10.2838]
[1771297056771,3.56029864,87.609,87.535,71.92]
[1771297056772,3.56029864,87.599,87.554,10.2849]
[1771297057074,3.56029864,87.599,87.555,3.89958657]
[1771297057468,2.65436276,87.61,87.559,3.89958657]
[1771297057870,6.2146614,87.61,87.559,3.89958657]
[1771297058076,3.56029864,87.609,87.559,3.89958657]
[1771297058468,12.93156276,87.62,87.565,3.89958657]
[1771297058878,3.56029864,87.619,87.571,10.2829]
[1771297059377,3.56029864,87.619,87.572,3.89958657]
[1771297059670,10.2778,87.616,87.572,3.89958657]
[1771297061479,3.56029864,87.619,87.576,14.18188657]
[1771297061667,3.56029864,87.619,87.577,3.89958657]
[1771297062775,3.56029864,87.619,87.578,10.2821]
[1771297066992,3.56029864,87.619,87.577,3.89958657]
[1771297067792,2.65436276,87.61,87.577,3.89958657]
[1771297074498,2.65436276,87.6,87.564,3.56949532]
[1771297076894,10.2793,87.603,87.564,3.56949532]
[1771297078098,10.2796,87.6,87.553,10.2851]
[1771297078297,3.78155421,87.599,87.553,13.85459532]
[1771297078502,3.78155421,87.599,87.554,3.56949532]
[1771297079803,3.78155421,87.599,87.555,10.2848]
[1771297080296,3.78155421,87.599,87.555,13.85429532]
[1771297080893,3.78155421,87.599,87.556,3.56949532]
[1771297082504,3.78155421,87.599,87.559,3.56949532]
[1771297084802,3.78155421,87.599,87.561,10.284]
[1771297085107,10.2789,87.606,87.562,3.56949532]
[1771297085606,3.78155421,87.605,87.562,3.56949532]
[1771297085807,3.78155421,87.605,87.564,3.56949532]
[1771297095016,2.65436276,87.6,87.564,3.56949532]
[1771297095215,3.71231252,87.599,87.555,10.2848]
[1771297096317,3.71231252,87.599,87.555,13.97836174]
[1771297096915,3.71231252,87.599,87.559,10.2843]
[1771297097114,3.71231252,87.599,87.56,3.69356174]
[1771297100113,3.71231252,87.599,87.562,3.69356174]
[1771297104118,3.71231252,87.589,87.536,13.84031282]
[1771297104321,3.71231252,87.579,87.535,17.53387456]
[1771297104522,3.71231252,87.579,87.535,3.69356174]
[1771297105323,3.71231252,87.578,87.535,3.69356174]
[1771297105522,3.71231252,87.577,87.535,3.69356174]
[1771297105721,3.71231252,87.577,87.537,10.287]
[1771297106625,3.71231252,87.575,87.537,10.287]
[1771297120728,3.71231252,87.569,87.528,3.69356174]
[1771297121026,3.71231252,87.567,87.528,3.69356174]
[1771297123533,2.65735523,87.56,87.528,3.69356174]
[1771297123838,3.71231252,87.559,87.516,3.69356174]
[1771297124038,75.69647513,87.558,87.516,3.69356174]
[1771297124435,2.65735523,87.55,87.516,3.69356174]
[1771297124632,71.96,87.549,87.516,3.69356174]
[1771297127234,71.96,87.548,87.516,3.69356174]
[1771297127435,71.96,87.547,87.516,3.69356174]
[1771297127632,71.96,87.546,87.516,3.69356174]
[1771297128434,71.96,87.545,87.516,3.69356174]
[1771297129240,71.96,87.544,87.516,3.69356174]
[1771297130338,14.02167513,87.552,87.516,3.69356174]
[1771297130533,71.96,87.551,87.516,3.69356174]
[1771297130835,3.73689422,87.55,87.502,3.91411872]
[1771297131030,3.73689422,87.529,87.482,3.91411872]
[1771297131228,71.96,87.528,87.482,3.91411872]
[1771297132241,3.73689422,87.529,87.482,3.91411872]
[1771297132443,71.96,87.528,87.482,3.91411872]
[1771297132738,71.96,87.528,87.491,3.91411872]
[1771297136036,3.73689422,87.539,87.493,3.91411872]
[1771297137136,10.2858,87.547,87.496,3.91411872]
[1771297137343,71.98,87.546,87.496,3.91411872]
[1771297137542,3.73689422,87.545,87.496,3.91411872]
[1771297138441,3.73689422,87.539,87.5,3.91411872]
[1771297140550,71.98,87.538,87.502,3.91411872]
[1771297141151,71.98,87.537,87.502,3.91411872]
[1771297141960,3.73689422,87.526,87.48,13.75927542]
[1771297142148,20.5638,87.581,87.48,13.75927542]
[1771297142149,2.65735523,87.51,87.48,13.75927542]
[1771297142349,71.98,87.509,87.48,13.75927542]
[1771297142844,75.71689422,87.509,87.48,13.75927542]
[1771297143047,3.73689422,87.508,87.48,13.75927542]
[1771297143252,71.98,87.507,87.48,13.75927542]
[1771297143552,71.98,87.506,87.48,13.75927542]
[1771297143955,2.65735523,87.5,87.48,5.64527542]
[1771297144146,71.98,87.499,87.48,5.64527542]
[1771297144342,10.2882,87.527,87.48,5.64527542]
[1771297144652,71.98,87.526,87.481,3.91411872]
[1771297144855,3.73689422,87.525,87.481,14.20771872]
[1771297145050,3.73689422,87.509,87.48,5.64527542]
[1771297145254,3.73689422,87.499,87.453,3.91411872]
[1771297145449,3.73689422,87.497,87.453,3.91411872]
[1771297145646,75.71689422,87.496,87.453,3.91411872]
[1771297145853,2.65735523,87.49,87.453,3.91411872]
[1771297146054,2.65735523,87.46,87.406,3.91411872]
[1771297146356,2.65735523,87.45,87.406,3.91411872]
[1771297146558,2.65735523,87.45,87.414,3.91411872]
[1771297147445,72.0,87.449,87.414,3.91411872]
[1771297148150,72.0,87.448,87.414,3.91411872]
[1771297150052,3.73689422,87.447,87.391,3.91411872]
[1771297150259,3.73689422,87.439,87.391,3.91411872]
[1771297150758,3.73689422,87.437,87.392,3.91411872]
[1771297151461,3.73689422,87.429,87.377,3.91411872]
[1771297151757,2.65735523,87.43,87.377,3.91411872]
[1771297152459,6.39424945,87.42,87.377,3.91411872]
[1771297153055,2.65735523,87.41,87.377,3.91411872]
[1771297156451,2.65735523,87.41,87.365,3.715444]
[1771297156657,6.44542696,87.41,87.365,3.715444]
[1771297157458,3.78807173,87.41,87.365,3.715444]
[1771297157664,3.79074583,87.409,87.365,3.715444]
[1771297157863,2.65735523,87.4,87.365,3.715444]
[1771297158167,3.79074583,87.399,87.351,3.715444]
[1771297158957,3.79074583,87.419,87.366,3.715444]
[1771297159261,2.65735523,87.41,87.366,3.715444]
[1771297159466,2.65735523,87.4,87.366,3.715444]
[1771297162769,3.72704526,87.399,87.346,3.715444]
[1771297162966,2.65735523,87.39,87.346,75.735444]
[1771297163272,10.3022,87.408,87.262,160.5231]
[1771297163273,2.65735523,87.37,87.333,3.715444]
[1771297163965,2.65735523,87.36,87.32,3.715444]
[1771297165477,3.55793874,87.349,87.308,3.715444]
[1771297165671,2.65735523,87.34,87.283,3.715444]
[1771297165871,2.65735523,87.34,87.296,3.715444]
[1771297166075,3.55793874,87.349,87.296,3.715444]
[1771297166375,2.65735523,87.34,87.296,3.715444]
[1771297166777,3.55793874,87.339,87.296,3.715444]
[1771297166972,2.65735523,87.33,87.29,10.316]
[1771297167175,3.55793874,87.329,87.281,3.715444]
[1771297167375,3.55793874,87.329,87.284,3.715444]
[1771297168169,3.49382655,87.344,87.291,3.715444]
[1771297168571,2.65735523,87.34,87.291,3.715444]
[1771297169073,2.65735523,87.36,87.312,3.715444]
[1771297169278,3.50719439,87.349,87.296,3.715444]
[1771297169477,2.65735523,87.34,87.296,3.715444]
[1771297169680,72.02,87.376,87.286,72.02]
[1771297169681,2.65735523,87.33,87.286,72.02]
[1771297169875,2.6723807,87.33,87.284,10.3167]
[1771297170279,6.17957509,87.32,87.275,72.02]
[1771297170577,6.17957509,87.32,87.272,10.3181]
[1771297170778,6.17957509,87.32,87.273,3.715444]
[1771297171180,2.6723807,87.31,87.273,3.715444]
[1771297173283,3.62641268,87.318,87.273,3.715444]
[1771297173982,3.62641268,87.309,87.262,10.3194]
[1771297174281,3.62641268,87.309,87.258,3.715444]
[1771297174476,3.62641268,87.299,87.246,72.02]
[1771297174680,3.62641268,87.299,87.242,3.715444]
[1771297174873,3.62641268,87.299,87.252,3.715444]
[1771297175283,2.6723807,87.29,87.252,3.715444]
[1771297176179,3.49612853,87.289,87.235,3.715444]
[1771297176575,2.6723807,87.29,87.235,3.715444]
[1771297176785,2.6723807,87.29,87.248,3.715444]
[1771297177782,2.6723807,87.29,87.251,10.3206]
[1771297178185,2.6723807,87.3,87.251,10.3206]
[1771297178382,3.44420458,87.299,87.251,10.3206]